[Event "*** Titled Tuesday Blitz"]
[Site "Chess.com"]
[Date "2021.03.02"]
[Round "7"]
[White "kidagent"]
[Black "Chesswizard_2007"]
[Result "1/2-1/2"]
[WhiteElo "2321"]
[BlackElo "2704"]
[TimeControl "180+1"]
[EndTime "11:19:50 PST"]
[Termination "Game drawn - timeout vs insufficient material"]

1. e4 {[%clk 0:01:57.9]} 1... c5 {[%clk 0:03:00.9]} 2. Nf3 {[%clk 0:01:54.5]}
2... Nc6 {[%clk 0:03:01.6]} 3. d4 {[%clk 0:01:46.8]} 3... cxd4 {[%clk
0:03:02.5]} 4. Nxd4 {[%clk 0:01:43.7]} 4... e5 {[%clk 0:03:02.7]} 5. Nb5 {[%clk
0:01:42.4]} 5... a6 {[%clk 0:03:01.8]} 6. Nd6+ {[%clk 0:01:41.8]} 6... Bxd6
{[%clk 0:03:02.2]} 7. Qxd6 {[%clk 0:01:41.2]} 7... Qe7 {[%clk 0:03:03.1]} 8. Qd1
{[%clk 0:01:30.9]} 8... Nf6 {[%clk 0:03:02.1]} 9. Nc3 {[%clk 0:01:31]} 9... Nd4
{[%clk 0:03:02.8]} 10. Bg5 {[%clk 0:01:27.3]} 10... Qe6 {[%clk 0:02:51.4]} 11.
Bxf6 {[%clk 0:01:24.6]} 11... Qxf6 {[%clk 0:02:50.8]} 12. Nd5 {[%clk 0:01:21.1]}
12... Qc6 {[%clk 0:02:45.7]} 13. c3 {[%clk 0:01:18.8]} 13... Ne6 {[%clk
0:02:44.7]} 14. g3 {[%clk 0:01:07.6]} 14... O-O {[%clk 0:02:43.3]} 15. Bg2
{[%clk 0:01:07.8]} 15... b5 {[%clk 0:02:42.5]} 16. Ne7+ {[%clk 0:01:07.3]} 16...
Kh8 {[%clk 0:02:37.4]} 17. Nxc6 {[%clk 0:01:08.2]} 17... dxc6 {[%clk 0:02:38.3]}
18. O-O {[%clk 0:01:09]} 18... Rd8 {[%clk 0:02:37.3]} 19. Qc2 {[%clk 0:01:08.1]}
19... Bb7 {[%clk 0:02:36.9]} 20. Rad1 {[%clk 0:01:08.6]} 20... Rdb8 {[%clk
0:02:34.4]} 21. Rd7 {[%clk 0:01:08]} 21... Kg8 {[%clk 0:02:35.3]} 22. Rfd1
{[%clk 0:01:06.6]} 22... c5 {[%clk 0:02:35.1]} 23. b4 {[%clk 0:01:04.2]} 23...
Bc6 {[%clk 0:02:34.4]} 24. R7d6 {[%clk 0:01:03.1]} 24... Be8 {[%clk 0:02:35]}
25. bxc5 {[%clk 0:01:01.8]} 25... Nxc5 {[%clk 0:02:34.7]} 26. f4 {[%clk
0:01:00]} 26... exf4 {[%clk 0:02:27.2]} 27. gxf4 {[%clk 0:00:59.6]} 27... Rc8
{[%clk 0:02:26.9]} 28. e5 {[%clk 0:00:59.6]} 28... Rab8 {[%clk 0:02:26.6]} 29.
Qd2 {[%clk 0:00:58.7]} 29... g6 {[%clk 0:02:19.6]} 30. Bd5 {[%clk 0:00:55.3]}
30... Kf8 {[%clk 0:02:16.7]} 31. e6 {[%clk 0:00:54.6]} 31... Rc7 {[%clk
0:01:53.9]} 32. exf7 {[%clk 0:00:52.5]} 32... Bxf7 {[%clk 0:01:48.8]} 33. Rf6
{[%clk 0:00:52.1]} 33... Rd8 {[%clk 0:01:47]} 34. Qe3 {[%clk 0:00:47.8]} 34...
Kg7 {[%clk 0:01:42]} 35. Qe5 {[%clk 0:00:43.2]} 35... Kh6 {[%clk 0:01:37.6]} 36.
Bf3 {[%clk 0:00:40.3]} 36... Rxd1+ {[%clk 0:01:33.5]} 37. Bxd1 {[%clk
0:00:41.1]} 37... Bc4 {[%clk 0:01:34.3]} 38. Qg5+ {[%clk 0:00:35.1]} 38... Kg7
{[%clk 0:01:31.6]} 39. Rd6 {[%clk 0:00:35.9]} 39... Nb7 {[%clk 0:01:09.5]} 40.
Qe5+ {[%clk 0:00:34]} 40... Kh6 {[%clk 0:01:03.4]} 41. Rxa6 {[%clk 0:00:34.8]}
41... Rd7 {[%clk 0:01:01.1]} 42. Bf3 {[%clk 0:00:34.1]} 42... Nd8 {[%clk
0:00:58]} 43. Rd6 {[%clk 0:00:32.4]} 43... Nf7 {[%clk 0:00:56.5]} 44. Rxd7
{[%clk 0:00:32.2]} 44... Nxe5 {[%clk 0:00:56.5]} 45. fxe5 {[%clk 0:00:33.1]}
45... Kg5 {[%clk 0:00:56.9]} 46. Bc6 {[%clk 0:00:31.1]} 46... Kf5 {[%clk
0:00:55.7]} 47. Rxh7 {[%clk 0:00:30.9]} 47... Kxe5 {[%clk 0:00:55.1]} 48. Rb7
{[%clk 0:00:31.4]} 48... Kd6 {[%clk 0:00:55.2]} 49. Bxb5 {[%clk 0:00:31.3]}
49... Bxa2 {[%clk 0:00:56.1]} 50. Bd3 {[%clk 0:00:27.4]} 50... g5 {[%clk
0:00:56]} 51. Rg7 {[%clk 0:00:27.2]} 51... Ke5 {[%clk 0:00:55.5]} 52. Rxg5+
{[%clk 0:00:27.2]} 52... Kf4 {[%clk 0:00:56.4]} 53. Rf5+ {[%clk 0:00:26.8]}
53... Ke3 {[%clk 0:00:56.6]} 54. Ba6 {[%clk 0:00:26.8]} 54... Bb1 {[%clk
0:00:56.6]} 55. Rf8 {[%clk 0:00:22.3]} 55... Ba2 {[%clk 0:00:54]} 56. c4 {[%clk
0:00:22.1]} 56... Kd4 {[%clk 0:00:54.9]} 57. Rc8 {[%clk 0:00:18.9]} 57... Bb1
{[%clk 0:00:50.1]} 58. c5 {[%clk 0:00:19.2]} 58... Bf5 {[%clk 0:00:50.7]} 59.
Rc7 {[%clk 0:00:18.1]} 59... Kd5 {[%clk 0:00:50.1]} 60. h4 {[%clk 0:00:18.4]}
60... Bg4 {[%clk 0:00:45.4]} 61. Bb7+ {[%clk 0:00:18.3]} 61... Ke6 {[%clk
0:00:44.6]} 62. Rg7 {[%clk 0:00:19.2]} 62... Bh5 {[%clk 0:00:44]} 63. Rg5 {[%clk
0:00:19.3]} 63... Be8 {[%clk 0:00:43.1]} 64. Bc8+ {[%clk 0:00:18.6]} 64... Ke7
{[%clk 0:00:43.3]} 65. Re5+ {[%clk 0:00:17.3]} 65... Kd8 {[%clk 0:00:41.8]} 66.
Rxe8+ {[%clk 0:00:17.9]} 66... Kc7 {[%clk 0:00:41.3]} 67. Bf5 {[%clk 0:00:17.6]}
67... Kc6 {[%clk 0:00:41.2]} 68. Re5 {[%clk 0:00:15.9]} 68... Kc7 {[%clk
0:00:42.1]} 69. Kf2 {[%clk 0:00:16]} 69... Kc6 {[%clk 0:00:42.9]} 70. Ke3 {[%clk
0:00:16.9]} 70... Kb5 {[%clk 0:00:43.8]} 71. Kd4 {[%clk 0:00:14]} 71... Kb4
{[%clk 0:00:44.7]} 1/2-1/2

[Event "*** Titled Tuesday Blitz"]
[Site "Chess.com"]
[Date "2021.03.02"]
[Round "7"]
[White "RaphCamora"]
[Black "Orest_Vovk"]
[Result "1-0"]
[WhiteElo "2379"]
[BlackElo "2490"]
[TimeControl "180+1"]
[EndTime "11:19:54 PST"]
[Termination "RaphCamora won on time"]

1. e4 {[%clk 0:03:00.9]} 1... Nc6 {[%clk 0:02:59.1]} 2. Nf3 {[%clk 0:02:59.6]}
2... d5 {[%clk 0:02:59.3]} 3. exd5 {[%clk 0:02:59.4]} 3... Qxd5 {[%clk
0:03:00.2]} 4. Nc3 {[%clk 0:02:58.8]} 4... Qa5 {[%clk 0:03:00.5]} 5. d4 {[%clk
0:02:58.9]} 5... Bg4 {[%clk 0:03:00.8]} 6. h3 {[%clk 0:02:56.8]} 6... Bxf3
{[%clk 0:03:00]} 7. Qxf3 {[%clk 0:02:57.7]} 7... O-O-O {[%clk 0:03:00.2]} 8. d5
{[%clk 0:02:51.3]} 8... Nb4 {[%clk 0:02:55.7]} 9. Bd3 {[%clk 0:01:44.9]} 9...
Nf6 {[%clk 0:02:51.5]} 10. O-O {[%clk 0:01:40.7]} 10... Nbxd5 {[%clk 0:02:46.4]}
11. Bd2 {[%clk 0:01:35.5]} 11... Nxc3 {[%clk 0:02:43.8]} 12. Bxc3 {[%clk
0:01:31.6]} 12... Qd5 {[%clk 0:02:43.6]} 13. Qe3 {[%clk 0:01:27.7]} 13... c5
{[%clk 0:02:06.3]} 14. Rad1 {[%clk 0:01:19.1]} 14... e6 {[%clk 0:01:59.6]} 15.
Be2 {[%clk 0:01:17.8]} 15... Qc6 {[%clk 0:01:43.5]} 16. Rxd8+ {[%clk 0:01:13.2]}
16... Kxd8 {[%clk 0:01:42.7]} 17. Rd1+ {[%clk 0:01:13.8]} 17... Kc8 {[%clk
0:01:40.5]} 18. Bxf6 {[%clk 0:01:10.8]} 18... gxf6 {[%clk 0:01:38.3]} 19. Bf3
{[%clk 0:01:11.4]} 19... Qc7 {[%clk 0:01:35]} 20. Bg4 {[%clk 0:00:38.7]} 20...
f5 {[%clk 0:01:28.9]} 21. Bxf5 {[%clk 0:00:38.9]} 21... Bg7 {[%clk 0:01:10.2]}
22. Be4 {[%clk 0:00:23]} 22... Bd4 {[%clk 0:01:07.4]} 23. Qf3 {[%clk 0:00:11.2]}
23... f5 {[%clk 0:01:06.8]} 24. Bd3 {[%clk 0:00:11.5]} 24... Rg8 {[%clk
0:01:03.3]} 25. c3 {[%clk 0:00:10.2]} 25... Rg3 {[%clk 0:00:54.8]} 26. Qe2
{[%clk 0:00:10.2]} 26... Qc6 {[%clk 0:00:51.3]} 27. Qf1 {[%clk 0:00:06.9]} 27...
c4 {[%clk 0:00:17.7]} 28. cxd4 {[%clk 0:00:06.3]} 28... Rxd3 {[%clk 0:00:16.4]}
29. Rxd3 {[%clk 0:00:06.6]} 29... cxd3 {[%clk 0:00:17.3]} 30. Qxd3 {[%clk
0:00:06.9]} 30... Qc1+ {[%clk 0:00:16.9]} 31. Kh2 {[%clk 0:00:07.2]} 31... Qxb2
{[%clk 0:00:17]} 32. Qc4+ {[%clk 0:00:07.7]} 32... Kd7 {[%clk 0:00:17.3]} 33. d5
{[%clk 0:00:08.1]} 33... Qe5+ {[%clk 0:00:17.2]} 34. g3 {[%clk 0:00:07.7]} 34...
Qxd5 {[%clk 0:00:16.7]} 35. Qa4+ {[%clk 0:00:08.3]} 35... Ke7 {[%clk 0:00:15.3]}
36. Qxa7 {[%clk 0:00:08.4]} 36... Kf6 {[%clk 0:00:15.2]} 37. Qe3 {[%clk
0:00:08.1]} 37... Kg6 {[%clk 0:00:13.8]} 38. h4 {[%clk 0:00:07.8]} 38... Qxa2
{[%clk 0:00:12.8]} 39. Qb6 {[%clk 0:00:07.7]} 39... Qd5 {[%clk 0:00:11.4]} 40.
Qc7 {[%clk 0:00:06]} 40... h6 {[%clk 0:00:10]} 41. Qe7 {[%clk 0:00:04.8]} 41...
b5 {[%clk 0:00:06.3]} 42. Qe8+ {[%clk 0:00:05]} 42... Kf6 {[%clk 0:00:06.6]} 43.
Qh8+ {[%clk 0:00:05.1]} 43... Ke7 {[%clk 0:00:06.6]} 44. Qh7+ {[%clk 0:00:05.1]}
44... Kd6 {[%clk 0:00:06.8]} 45. Qxh6 {[%clk 0:00:06]} 45... b4 {[%clk
0:00:07.2]} 46. Qf4+ {[%clk 0:00:06.4]} 46... Kc5 {[%clk 0:00:07.1]} 47. h5
{[%clk 0:00:06.7]} 47... b3 {[%clk 0:00:06.4]} 48. h6 {[%clk 0:00:07]} 48... e5
{[%clk 0:00:05]} 49. Qe3+ {[%clk 0:00:07.1]} 49... Qd4 {[%clk 0:00:05.2]} 50.
Qxb3 {[%clk 0:00:07.1]} 50... Qxf2+ {[%clk 0:00:04.7]} 51. Kh3 {[%clk
0:00:07.8]} 51... Qf1+ {[%clk 0:00:04.8]} 52. Kh4 {[%clk 0:00:08.1]} 52... Qh1+
{[%clk 0:00:03.9]} 53. Kg5 {[%clk 0:00:08.6]} 53... Qe4 {[%clk 0:00:04.7]} 54.
Qc3+ {[%clk 0:00:08.8]} 54... Kb5 {[%clk 0:00:04.6]} 55. Qb2+ {[%clk 0:00:08.8]}
55... Kc4 {[%clk 0:00:04.5]} 56. Qc1+ {[%clk 0:00:08.9]} 56... Kd5 {[%clk
0:00:03.7]} 57. Qd1+ {[%clk 0:00:09.3]} 57... Kc5 {[%clk 0:00:03.7]} 58. h7
{[%clk 0:00:09.7]} 58... Qe3+ {[%clk 0:00:03]} 59. Kg6 {[%clk 0:00:10.2]} 59...
Qxg3+ {[%clk 0:00:03.1]} 60. Kf7 {[%clk 0:00:10.8]} 60... Qh4 {[%clk 0:00:02.8]}
61. Qc2+ {[%clk 0:00:11.1]} 61... Kd4 {[%clk 0:00:02.4]} 62. Qxf5 {[%clk
0:00:12]} 62... Qf4 {[%clk 0:00:01.6]} 63. Qxf4+ {[%clk 0:00:12.2]} 63... exf4
{[%clk 0:00:02.5]} 64. h8=Q+ {[%clk 0:00:12.7]} 64... Ke3 {[%clk 0:00:02.6]} 65.
Qh1 {[%clk 0:00:13]} 65... f3 {[%clk 0:00:03.5]} 66. Qf1 {[%clk 0:00:13.1]} 1-0

[Event "*** Titled Tuesday Blitz"]
[Site "Chess.com"]
[Date "2021.03.02"]
[Round "7"]
[White "Gahan-MG"]
[Black "grunbergmihai"]
[Result "1-0"]
[WhiteElo "2642"]
[BlackElo "2481"]
[TimeControl "180+1"]
[EndTime "11:19:58 PST"]
[Termination "Gahan-MG won on time"]

1. e4 {[%clk 0:03:00.9]} 1... Nf6 {[%clk 0:02:57.4]} 2. e5 {[%clk 0:03:00.4]}
2... Nd5 {[%clk 0:02:56.8]} 3. d4 {[%clk 0:03:01.3]} 3... d6 {[%clk 0:02:56.7]}
4. Nf3 {[%clk 0:03:00.8]} 4... dxe5 {[%clk 0:02:56.3]} 5. Nxe5 {[%clk
0:03:00.5]} 5... c6 {[%clk 0:02:56.2]} 6. Be2 {[%clk 0:02:59.8]} 6... Nd7 {[%clk
0:02:55.1]} 7. O-O {[%clk 0:02:54.6]} 7... Nxe5 {[%clk 0:02:54]} 8. dxe5 {[%clk
0:02:54.7]} 8... Bf5 {[%clk 0:02:53.6]} 9. Nd2 {[%clk 0:02:39.9]} 9... e6 {[%clk
0:02:52.9]} 10. Nf3 {[%clk 0:02:39.6]} 10... Be7 {[%clk 0:02:51.3]} 11. c4
{[%clk 0:02:39.7]} 11... Nb4 {[%clk 0:02:50.2]} 12. Qb3 {[%clk 0:02:39.8]} 12...
Nc2 {[%clk 0:02:37.1]} 13. Rb1 {[%clk 0:02:35.4]} 13... Qb6 {[%clk 0:02:27.7]}
14. Bd2 {[%clk 0:02:18.3]} 14... Qxb3 {[%clk 0:02:15.2]} 15. axb3 {[%clk
0:02:19.2]} 15... O-O-O {[%clk 0:02:13.7]} 16. Bc3 {[%clk 0:02:18.2]} 16... Rd7
{[%clk 0:02:01.4]} 17. Rfc1 {[%clk 0:01:58.5]} 17... Rhd8 {[%clk 0:01:57.3]} 18.
h3 {[%clk 0:01:52.7]} 18... h6 {[%clk 0:01:53.6]} 19. Ba5 {[%clk 0:01:48.9]}
19... b6 {[%clk 0:01:52.8]} 20. Bc3 {[%clk 0:01:48.7]} 20... c5 {[%clk
0:01:51.8]} 21. Rf1 {[%clk 0:01:35.1]} 21... Nd4 {[%clk 0:01:43.7]} 22. Bxd4
{[%clk 0:01:10.8]} 22... Bxb1 {[%clk 0:01:41.7]} 23. Rxb1 {[%clk 0:01:09.2]}
23... cxd4 {[%clk 0:01:39.7]} 24. Bd3 {[%clk 0:01:09.7]} 24... Bb4 {[%clk
0:01:34.2]} 25. Ne1 {[%clk 0:01:00.8]} 25... Bxe1 {[%clk 0:01:31.4]} 26. Rxe1
{[%clk 0:01:01.7]} 26... a5 {[%clk 0:01:29.9]} 27. f4 {[%clk 0:00:59.3]} 27...
Kc7 {[%clk 0:01:29.4]} 28. Kf2 {[%clk 0:00:58.2]} 28... Kc6 {[%clk 0:01:28.4]}
29. Ra1 {[%clk 0:00:53.1]} 29... Kc5 {[%clk 0:01:26.5]} 30. Ra4 {[%clk
0:00:52.8]} 30... f6 {[%clk 0:01:23.1]} 31. exf6 {[%clk 0:00:35.7]} 31... gxf6
{[%clk 0:01:24]} 32. g4 {[%clk 0:00:35.2]} 32... e5 {[%clk 0:01:22.1]} 33. f5
{[%clk 0:00:29.2]} 33... Re7 {[%clk 0:01:08.4]} 34. Kf3 {[%clk 0:00:28.6]} 34...
e4+ {[%clk 0:00:58.8]} 35. Bxe4 {[%clk 0:00:28.5]} 35... d3 {[%clk 0:00:55.3]}
36. Ra1 {[%clk 0:00:25.9]} 36... d2 {[%clk 0:00:54.1]} 37. Rd1 {[%clk
0:00:23.7]} 37... Kb4 {[%clk 0:00:52.2]} 38. Bd5 {[%clk 0:00:18.6]} 38... Rde8
{[%clk 0:00:41.8]} 39. Rxd2 {[%clk 0:00:18.7]} 39... Re3+ {[%clk 0:00:41.4]} 40.
Kf4 {[%clk 0:00:18.2]} 40... Rxh3 {[%clk 0:00:37]} 41. Be6 {[%clk 0:00:18.3]}
41... h5 {[%clk 0:00:27]} 42. Rd6 {[%clk 0:00:14.7]} 42... Rb8 {[%clk
0:00:20.5]} 43. Bf7 {[%clk 0:00:12.4]} 43... h4 {[%clk 0:00:17.4]} 44. Rxf6
{[%clk 0:00:11.9]} 44... Rxb3 {[%clk 0:00:13.3]} 45. c5 {[%clk 0:00:11.6]} 45...
Rxb2 {[%clk 0:00:11.4]} 46. cxb6 {[%clk 0:00:10.3]} 46... h3 {[%clk 0:00:09.9]}
47. Rh6 {[%clk 0:00:10.1]} 47... h2 {[%clk 0:00:10.1]} 48. g5 {[%clk 0:00:08.6]}
48... a4 {[%clk 0:00:08.9]} 49. g6 {[%clk 0:00:07.4]} 49... a3 {[%clk
0:00:08.5]} 50. g7 {[%clk 0:00:07.7]} 50... a2 {[%clk 0:00:08.3]} 51. Bxa2
{[%clk 0:00:07.7]} 51... Rxa2 {[%clk 0:00:08.1]} 52. f6 {[%clk 0:00:08.2]} 52...
Rxb6 {[%clk 0:00:06]} 53. g8=Q {[%clk 0:00:07.2]} 53... Rxf6+ {[%clk 0:00:05.7]}
54. Rxf6 {[%clk 0:00:05.9]} 54... h1=Q {[%clk 0:00:05.8]} 55. Qxa2 {[%clk
0:00:05]} 55... Qh4+ {[%clk 0:00:04.7]} 56. Kf5 {[%clk 0:00:05]} 56... Qh5+
{[%clk 0:00:04.1]} 57. Ke6 {[%clk 0:00:04]} 57... Qe8+ {[%clk 0:00:04.1]} 58.
Kf5 {[%clk 0:00:03.1]} 58... Qh5+ {[%clk 0:00:03.9]} 59. Ke4 {[%clk 0:00:03]}
59... Qh4+ {[%clk 0:00:03.5]} 60. Rf4 {[%clk 0:00:03.2]} 60... Qe7+ {[%clk
0:00:03.3]} 61. Kf5+ {[%clk 0:00:03.5]} 61... Kc5 {[%clk 0:00:01.2]} 62. Qe6
{[%clk 0:00:03.5]} 1-0

[Event "*** Titled Tuesday Blitz"]
[Site "Chess.com"]
[Date "2021.03.02"]
[Round "7"]
[White "Lysiak_Poltorak"]
[Black "elohunter1999"]
[Result "0-1"]
[WhiteElo "2471"]
[BlackElo "2631"]
[TimeControl "180+1"]
[EndTime "11:20:02 PST"]
[Termination "elohunter1999 won on time"]

1. d4 {[%clk 0:03:00.9]} 1... Nf6 {[%clk 0:02:56.6]} 2. c4 {[%clk 0:03:01.3]}
2... e6 {[%clk 0:02:55.9]} 3. Nc3 {[%clk 0:03:01.6]} 3... Bb4 {[%clk 0:02:55.4]}
4. Qc2 {[%clk 0:03:01.1]} 4... d5 {[%clk 0:02:50.1]} 5. cxd5 {[%clk 0:03:00]}
5... exd5 {[%clk 0:02:49.7]} 6. Bg5 {[%clk 0:02:59.6]} 6... h6 {[%clk 0:02:47]}
7. Bxf6 {[%clk 0:02:59.3]} 7... Qxf6 {[%clk 0:02:46.7]} 8. a3 {[%clk 0:02:59.9]}
8... Bxc3+ {[%clk 0:02:38.4]} 9. Qxc3 {[%clk 0:03:00.8]} 9... c6 {[%clk
0:02:35.9]} 10. e3 {[%clk 0:03:01]} 10... Bf5 {[%clk 0:02:35.1]} 11. Bd3 {[%clk
0:03:00.4]} 11... Bxd3 {[%clk 0:02:34.6]} 12. Qxd3 {[%clk 0:03:01.3]} 12... O-O
{[%clk 0:02:34.7]} 13. Nf3 {[%clk 0:02:58]} 13... Nd7 {[%clk 0:02:35]} 14. O-O
{[%clk 0:02:58.5]} 14... Rfe8 {[%clk 0:02:34.7]} 15. b4 {[%clk 0:02:56.6]} 15...
a6 {[%clk 0:02:30.3]} 16. a4 {[%clk 0:02:53.2]} 16... Nb6 {[%clk 0:02:24.7]} 17.
Nd2 {[%clk 0:02:38.3]} 17... Nc8 {[%clk 0:02:23.3]} 18. b5 {[%clk 0:02:35.9]}
18... axb5 {[%clk 0:02:20.7]} 19. axb5 {[%clk 0:02:35.6]} 19... Rxa1 {[%clk
0:02:21.6]} 20. Rxa1 {[%clk 0:02:35.9]} 20... c5 {[%clk 0:02:22.5]} 21. Rb1
{[%clk 0:01:16.8]} 21... c4 {[%clk 0:02:20.4]} 22. Qc2 {[%clk 0:01:15.7]} 22...
Nd6 {[%clk 0:02:17.4]} 23. Nf3 {[%clk 0:01:15.4]} 23... Ra8 {[%clk 0:02:15.8]}
24. Ne5 {[%clk 0:01:13.6]} 24... Qd8 {[%clk 0:02:04.2]} 25. Qc3 {[%clk
0:00:58.4]} 25... Qa5 {[%clk 0:02:01.5]} 26. Qxa5 {[%clk 0:00:52.1]} 26... Rxa5
{[%clk 0:02:02.4]} 27. b6 {[%clk 0:00:52.4]} 27... f6 {[%clk 0:01:41.9]} 28. Nd7
{[%clk 0:00:52.2]} 28... c3 {[%clk 0:01:39.9]} 29. Nc5 {[%clk 0:00:19]} 29... c2
{[%clk 0:01:22.6]} 30. Rc1 {[%clk 0:00:18.9]} 30... Rb5 {[%clk 0:01:22.3]} 31.
Kf1 {[%clk 0:00:12.7]} 31... Rb1 {[%clk 0:01:14.2]} 32. Nd3 {[%clk 0:00:13.2]}
32... Nc4 {[%clk 0:01:12.2]} 33. Ke2 {[%clk 0:00:12.6]} 33... Na3 {[%clk
0:01:11.6]} 34. Kd2 {[%clk 0:00:09.6]} 34... Rxb6 {[%clk 0:01:11.3]} 35. Ne1
{[%clk 0:00:09.4]} 35... Nc4+ {[%clk 0:01:00.3]} 36. Kc3 {[%clk 0:00:06.5]}
36... Rc6 {[%clk 0:00:59.2]} 37. Nxc2 {[%clk 0:00:06]} 37... Nxe3+ {[%clk
0:00:58.5]} 38. Kd3 {[%clk 0:00:06.5]} 38... Nxc2 {[%clk 0:00:57.6]} 39. Rxc2
{[%clk 0:00:07.4]} 39... Rxc2 {[%clk 0:00:57.6]} 40. Kxc2 {[%clk 0:00:08.3]}
40... Kf7 {[%clk 0:00:58.3]} 41. Kb3 {[%clk 0:00:08.7]} 41... Ke6 {[%clk
0:00:58.1]} 42. Kb4 {[%clk 0:00:09.6]} 42... Kf5 {[%clk 0:00:55.4]} 43. Kc5
{[%clk 0:00:08.9]} 43... Ke4 {[%clk 0:00:50]} 44. f3+ {[%clk 0:00:09]} 44... Ke3
{[%clk 0:00:50.5]} 45. Kxd5 {[%clk 0:00:09.6]} 45... b5 {[%clk 0:00:51.4]} 46.
Kc5 {[%clk 0:00:05.7]} 46... b4 {[%clk 0:00:51.9]} 47. d5 {[%clk 0:00:05.9]}
47... b3 {[%clk 0:00:52.4]} 48. d6 {[%clk 0:00:06.6]} 48... b2 {[%clk
0:00:53.3]} 49. d7 {[%clk 0:00:07.3]} 49... b1=Q {[%clk 0:00:54.2]} 50. d8=Q
{[%clk 0:00:08.2]} 50... Qc2+ {[%clk 0:00:53.3]} 51. Kb5 {[%clk 0:00:08.6]}
51... Qxg2 {[%clk 0:00:50.8]} 52. Qd5 {[%clk 0:00:05.9]} 52... Qxf3 {[%clk
0:00:46.6]} 53. Qe6+ {[%clk 0:00:05]} 53... Kf2 {[%clk 0:00:41]} 54. Qf7 {[%clk
0:00:04.9]} 54... g5 {[%clk 0:00:37.4]} 55. Qg6 {[%clk 0:00:04.8]} 55... h5
{[%clk 0:00:31.1]} 56. Kc5 {[%clk 0:00:05.2]} 56... h4 {[%clk 0:00:28]} 57. Kd4
{[%clk 0:00:05.2]} 57... Qf4+ {[%clk 0:00:27]} 58. Kd3 {[%clk 0:00:03.2]} 58...
Qxh2 {[%clk 0:00:26.4]} 59. Qxf6+ {[%clk 0:00:02.9]} 59... Qf4 {[%clk
0:00:26.7]} 60. Qb6+ {[%clk 0:00:03.2]} 60... Kg3 {[%clk 0:00:26.3]} 61. Ke2
{[%clk 0:00:02.7]} 61... Qf3+ {[%clk 0:00:24.7]} 62. Ke1 {[%clk 0:00:03.2]}
62... h3 {[%clk 0:00:23.7]} 63. Qg1+ {[%clk 0:00:03.7]} 63... Qg2 {[%clk
0:00:23]} 64. Qe3+ {[%clk 0:00:03.7]} 64... Kh2 {[%clk 0:00:21.7]} 65. Qe6
{[%clk 0:00:02.3]} 65... g4 {[%clk 0:00:20.5]} 66. Kd1 {[%clk 0:00:01.9]} 66...
g3 {[%clk 0:00:20]} 67. Ke1 {[%clk 0:00:02.1]} 67... Kh1 {[%clk 0:00:19.3]} 68.
Kd1 {[%clk 0:00:02.1]} 68... h2 {[%clk 0:00:18.6]} 69. Ke1 {[%clk 0:00:01.5]}
69... Qf2+ {[%clk 0:00:18.7]} 70. Kd1 {[%clk 0:00:01.9]} 70... Kg1 {[%clk
0:00:19]} 0-1